fUST/lending_fUST_20250708
["ID","MTS","AMOUNT","RATE_DAILY","PERIOD"]
[370365095,1751981460413,-486.0,0.00020155,2]
[370365096,1751981460423,-25000.0,0.00020163,2]
[370365097,1751981460432,-1500.0,0.00020168,2]
[370365098,1751981460442,-600.1083963,0.00020168,2]
[370365099,1751981460452,-1500.0,0.00020168,2]
[370365100,1751981460462,-1500.0,0.00020168,2]
[370365101,1751981460471,-1500.0,0.00020168,2]
[370365102,1751981460481,-1500.0,0.00020168,2]
[370365103,1751981460490,-1504.31560942,0.00020168,2]
[370365104,1751981460499,-401.85873323,0.00020168,2]
[370365105,1751981460508,-1500.0,0.00020168,2]
[370365106,1751981460518,-1087.89327474,0.00020168,2]
[370365107,1751981460527,-1500.0,0.00020168,2]
[370365108,1751981460537,-317.49538239,0.00020168,2]
[370365109,1751981460546,-486.0,0.00020172,2]
[370365110,1751981460556,-500.0,0.00020177,2]
[370365111,1751981460565,-2200.0,0.00020177,2]
[370365112,1751981460576,-486.0,0.00020189,2]
[370365113,1751981460586,-151.0,0.000202,4]
[370365114,1751981460597,-479.0,0.0002021,2]
[370365115,1751981460607,-294.0,0.00020215,2]
[370365116,1751981460616,-2945.41,0.00020248,2]
[370365117,1751981460625,-997.29719549,0.00020268,2]
[370365118,1751981460634,-1500.0,0.00020268,2]
[370365119,1751981460643,-1500.0,0.00020268,2]
[370365120,1751981460653,-1500.0,0.00020268,2]
[370365121,1751981460662,-1500.0,0.00020268,2]
[370365122,1751981460671,-1500.0,0.00020268,2]
[370365123,1751981460680,-1500.0,0.00020268,2]
[370365124,1751981460689,-1516.5851039,0.00020268,2]
[370365125,1751981460700,-1500.0,0.00020268,2]
[370365126,1751981460710,-1501.57693624,0.00020268,2]
[370365127,1751981460719,-1800.0,0.00020268,2]
[370365128,1751981460728,-1500.0,0.00020268,2]
[370365129,1751981460737,-1500.0,0.00020268,2]
[370365130,1751981460747,-1500.0,0.00020268,2]
[370365131,1751981460756,-846.32858778,0.00020268,2]
[370365132,1751981460766,-1002.21531383,0.00020268,2]
[370365133,1751981460775,-1500.0,0.00020268,2]
[370365134,1751981460787,-351.56210554,0.00020268,2]
[370365135,1751981460796,-612.13462772,0.00020268,2]
[370365136,1751981460806,-1001.15574016,0.00020268,2]
[370365137,1751981460816,-1500.0,0.00020268,2]
[370365138,1751981460827,-418.74847875,0.00020268,2]
[370365139,1751981460836,-1500.0,0.00020268,2]
[370365140,1751981460846,-1500.0,0.00020268,2]
[370365141,1751981460856,-1500.0,0.00020268,2]
[370365142,1751981460865,-1500.0,0.00020268,2]
[370365143,1751981460874,-200.0,0.00020272,2]
[370365144,1751981460883,-460.0,0.00020273,2]
[370365145,1751981460895,-460.0,0.00020273,2]
[370365146,1751981460904,-460.0,0.00020273,2]
[370365147,1751981460913,-460.0,0.00020273,2]
[370365148,1751981460923,-460.0,0.00020273,2]
[370365149,1751981460933,-460.0,0.00020273,2]
[370365150,1751981460943,-460.0,0.00020273,2]
[370365151,1751981460953,-460.0,0.00020273,2]
[370365152,1751981460963,-460.0,0.00020273,2]
[370365153,1751981460973,-380.39198522,0.00020273,2]
[370365154,1751981460984,-460.0,0.00020273,2]
[370365155,1751981460994,-460.0,0.00020273,2]
[370365156,1751981461003,-460.0,0.00020273,2]
[370365157,1751981461013,-529.8,0.00020273,2]
[370365158,1751981461022,-220.991192,0.00020273,2]
[370365159,1751981461031,-460.0,0.00020273,2]
[370365160,1751981461040,-460.0,0.00020273,2]
[370365161,1751981461050,-151.0,0.00020273,2]
[370365162,1751981461059,-460.0,0.00020273,2]
[370365163,1751981461068,-460.0,0.00020273,2]
[370365164,1751981461077,-460.0,0.00020273,2]
[370365165,1751981461087,-460.0,0.00020273,2]
[370365166,1751981461096,-460.0,0.00020273,2]
[370365167,1751981461106,-508.39,0.00020273,2]
[370365168,1751981461115,-460.0,0.00020273,2]
[370365169,1751981461124,-460.0,0.00020273,2]
[370365170,1751981461134,-460.0,0.00020273,2]
[370365171,1751981461144,-460.0,0.00020273,2]
[370365172,1751981461153,-460.0,0.00020273,2]
[370365173,1751981461162,-460.0,0.00020273,2]
[370365174,1751981461172,-465.54,0.00020273,2]
[370365175,1751981461181,-466.84161295,0.00020273,2]
[370365176,1751981461191,-460.0,0.00020273,2]
[370365177,1751981461201,-569.19,0.00020273,2]
[370365178,1751981461211,-460.0,0.00020273,2]
[370365179,1751981461219,-460.0,0.00020273,2]
[370365180,1751981461229,-460.0,0.00020273,2]
[370365181,1751981461243,-223.12344877,0.00020273,2]
[370365182,1751981461260,-460.0,0.00020273,2]
[370365183,1751981461274,-395.13868863,0.00020273,2]
[370365184,1751981461290,-460.0,0.00020273,2]
[370365185,1751981461308,-460.0,0.00020273,2]
[370365186,1751981461333,-460.0,0.00020273,2]
[370365187,1751981461350,-460.0,0.00020273,2]
[370365188,1751981461368,-460.0,0.00020273,2]
[370365189,1751981461383,-546.56981067,0.00020273,2]
[370365190,1751981461398,-713.88,0.00020273,2]
[370365191,1751981461414,-460.0,0.00020273,2]
[370365192,1751981461428,-460.0,0.00020273,2]
[370365193,1751981461441,-460.0,0.00020273,2]
[370365194,1751981461454,-460.0,0.00020273,2]
[370365195,1751981461469,-460.0,0.00020273,2]
[370365196,1751981461485,-464.6,0.00020273,2]
[370365197,1751981461502,-758.18,0.00020273,2]
[370365198,1751981461524,-460.0,0.00020273,2]
[370365199,1751981461539,-460.0,0.00020273,2]
[370365200,1751981461550,-460.0,0.00020273,2]
[370365201,1751981461566,-460.0,0.00020273,2]
[370365202,1751981461581,-460.0,0.00020273,2]
[370365203,1751981461592,-460.0,0.00020273,2]
[370365204,1751981461607,-415.36541945,0.00020273,2]
[370365205,1751981461621,-959.15,0.00020273,2]
[370365206,1751981461633,-460.0,0.00020273,2]
[370365207,1751981461647,-460.0,0.00020273,2]
[370365208,1751981461661,-460.0,0.00020273,2]
[370365209,1751981461675,-680.29,0.00020273,2]
[370365210,1751981461690,-460.0,0.00020273,2]
[370365211,1751981461703,-460.0,0.00020273,2]
[370365212,1751981461718,-748.67,0.00020273,2]
[370365213,1751981461733,-460.0,0.00020273,2]
[370365214,1751981461747,-567.15,0.00020273,2]
[370365215,1751981461760,-460.0,0.00020273,2]
[370365216,1751981461773,-460.0,0.00020273,2]
[370365217,1751981461787,-460.0,0.00020273,2]
[370365218,1751981461799,-460.0,0.00020273,2]
[370365219,1751981461811,-460.0,0.00020273,2]
[370365220,1751981461824,-460.0,0.00020273,2]
[370365221,1751981461837,-498.51,0.00020273,2]
[370365222,1751981461849,-460.0,0.00020273,2]
[370365223,1751981461862,-552.98,0.00020273,2]
[370365224,1751981461875,-460.0,0.00020273,2]
[370365225,1751981461888,-460.0,0.00020273,2]
[370365226,1751981461900,-460.0,0.00020273,2]
[370365227,1751981461913,-481.51117698,0.00020273,2]
[370365228,1751981461925,-460.0,0.00020273,2]
[370365229,1751981461937,-460.0,0.00020273,2]
[370365230,1751981461950,-320.50335659,0.00020273,2]
[370365231,1751981461962,-609.74,0.00020273,2]
[370365232,1751981461976,-460.0,0.00020273,2]
[370365233,1751981461989,-1124.92,0.00020273,2]
[370365234,1751981462002,-460.0,0.00020273,2]
[370365235,1751981462017,-460.0,0.00020273,2]
[370365236,1751981462031,-460.0,0.00020273,2]
[370365237,1751981462043,-1744.91,0.00020273,2]
[370365238,1751981462055,-1208.23,0.00020273,2]
[370365239,1751981462067,-460.0,0.00020273,2]
[370365240,1751981462078,-482.14,0.00020273,2]
[370365241,1751981462090,-460.0,0.00020273,2]
[370365242,1751981462102,-460.0,0.00020273,2]
[370365243,1751981462113,-460.0,0.00020273,2]
[370365244,1751981462125,-460.0,0.00020273,2]
[370365245,1751981462138,-460.0,0.00020273,2]
[370365246,1751981462151,-1511.21,0.00020273,2]
[370365247,1751981462167,-460.0,0.00020273,2]
[370365248,1751981462190,-460.0,0.00020273,2]
[370365249,1751981462205,-794.32,0.00020273,2]
[370365250,1751981462217,-460.0,0.00020273,2]
[370365251,1751981462229,-460.0,0.00020273,2]
[370365252,1751981462242,-460.0,0.00020273,2]
[370365253,1751981462254,-460.0,0.00020273,2]
[370365254,1751981462266,-519.1,0.00020273,2]
[370365255,1751981462279,-460.0,0.00020273,2]
[370365256,1751981462292,-460.0,0.00020273,2]
[370365257,1751981462310,-460.0,0.00020273,2]
[370365258,1751981462322,-493.07,0.00020273,2]
[370365259,1751981462334,-460.0,0.00020273,2]
[370365260,1751981462346,-460.0,0.00020273,2]
[370365261,1751981462358,-460.0,0.00020273,2]
[370365262,1751981462370,-547.93668276,0.00020273,2]
[370365263,1751981462381,-771.38,0.00020273,2]
[370365264,1751981462393,-460.0,0.00020273,2]
[370365265,1751981462405,-460.0,0.00020273,2]
[370365266,1751981462417,-460.0,0.00020273,2]
[370365267,1751981462429,-460.0,0.00020273,2]
[370365268,1751981462440,-2014.72,0.00020273,2]
[370365269,1751981462452,-1911.82,0.00020273,2]
[370365270,1751981462463,-460.0,0.00020273,2]
[370365271,1751981462475,-460.0,0.00020273,2]
[370365272,1751981462486,-460.0,0.00020273,2]
[370365273,1751981462498,-460.0,0.00020273,2]
[370365274,1751981462510,-608.19,0.00020273,2]
[370365275,1751981462522,-550.93879896,0.00020273,2]
[370365276,1751981462537,-955.2,0.00020273,2]
[370365277,1751981462552,-460.0,0.00020273,2]
[370365278,1751981462563,-460.0,0.00020273,2]
[370365279,1751981462574,-547.96,0.00020273,2]
[370365280,1751981462585,-460.0,0.00020273,2]
[370365281,1751981462597,-460.0,0.00020273,2]
[370365282,1751981462609,-460.0,0.00020273,2]
[370365283,1751981462621,-1049.02,0.00020273,2]
[370365284,1751981462632,-460.0,0.00020273,2]
[370365285,1751981462644,-746.26,0.00020273,2]
[370365286,1751981462656,-460.0,0.00020273,2]
[370365287,1751981462668,-467.97,0.00020273,2]
[370365288,1751981462680,-460.0,0.00020273,2]
[370365289,1751981462691,-460.0,0.00020273,2]
[370365290,1751981462703,-905.71,0.00020273,2]
[370365291,1751981462715,-460.0,0.00020273,2]
[370365292,1751981462727,-472.98197654,0.00020273,2]
[370365293,1751981462738,-460.0,0.00020273,2]
[370365294,1751981462963,-460.0,0.00020273,2]
[370365295,1751981462972,-460.0,0.00020273,2]
[370365296,1751981462982,-460.0,0.00020273,2]
[370365297,1751981462991,-460.0,0.00020273,2]
[370365298,1751981463000,-850.76,0.00020273,2]
[370365299,1751981463010,-460.0,0.00020273,2]
[370365300,1751981463019,-460.0,0.00020273,2]
[370365301,1751981463029,-1070.05,0.00020273,2]
[370365302,1751981463040,-460.0,0.00020273,2]
[370365303,1751981463050,-265.3335377,0.00020273,2]
[370365304,1751981463060,-460.0,0.00020273,2]
[370365305,1751981463070,-460.0,0.00020273,2]
[370365306,1751981463079,-1572.06,0.00020273,2]
[370365307,1751981463089,-621.79,0.00020273,2]
[370365308,1751981463099,-693.45,0.00020273,2]
[370365309,1751981463109,-841.07,0.00020273,2]
[370365310,1751981463119,-460.0,0.00020273,2]
[370365311,1751981463129,-500.0,0.00020273,2]
[370365312,1751981463139,-460.0,0.00020273,2]
[370365313,1751981463149,-460.0,0.00020273,2]
[370365314,1751981463159,-341.66027571,0.00020273,2]
[370365315,1751981463169,-5517.82,0.00020273,2]
[370365316,1751981463179,-460.0,0.00020273,2]
[370365317,1751981463189,-414.38424089,0.00020273,2]
[370365318,1751981463198,-460.0,0.00020273,2]
[370365319,1751981463208,-460.0,0.00020273,2]
[370365320,1751981463217,-1821.56,0.00020273,2]
[370365321,1751981463227,-13455.79,0.00020273,2]
[370365322,1751981463236,-460.0,0.00020273,2]
[370365323,1751981463245,-460.0,0.00020273,2]
[370365324,1751981463255,-5439.09,0.00020273,2]
[370365325,1751981463264,-1036.04,0.00020273,2]
[370365326,1751981463274,-765.94,0.00020273,2]
[370365327,1751981463288,-460.0,0.00020273,2]
[370365328,1751981463301,-1757.46,0.00020273,2]
[370365329,1751981463310,-1867.66,0.00020273,2]
[370365330,1751981463320,-460.0,0.00020273,2]
[370365331,1751981463330,-460.0,0.00020273,2]
[370365332,1751981463342,-3385.63,0.00020273,2]
[370365333,1751981463352,-496.72988342,0.00020273,2]
[370365334,1751981463361,-460.0,0.00020273,2]
[370365335,1751981463375,-460.0,0.00020273,2]
[370365336,1751981463386,-460.0,0.00020273,2]
[370365337,1751981463396,-991.97,0.00020273,2]
[370365338,1751981463406,-460.0,0.00020273,2]
[370365339,1751981463416,-460.0,0.00020273,2]
[370365340,1751981463426,-898.5,0.00020273,2]
[370365341,1751981463436,-460.0,0.00020273,2]
[370365342,1751981463446,-460.0,0.00020273,2]
[370365343,1751981463456,-560.13,0.00020273,2]
[370365344,1751981463466,-460.0,0.00020273,2]
[370365345,1751981463476,-4924.84,0.00020273,2]
[370365346,1751981463486,-460.0,0.00020273,2]
[370365347,1751981463495,-4461.65,0.00020273,2]
[370365348,1751981463506,-559.75,0.00020273,2]
[370365349,1751981463515,-3873.62,0.00020273,2]
[370365350,1751981463525,-460.0,0.00020273,2]
[370365351,1751981463538,-460.0,0.00020273,2]
[370365352,1751981463549,-460.0,0.00020273,2]
[370365353,1751981463558,-602.16,0.00020273,2]
[370365354,1751981463567,-460.0,0.00020273,2]
[370365355,1751981463577,-2351.87,0.00020273,2]
[370365356,1751981463586,-460.0,0.00020273,2]
[370365357,1751981463596,-900.22,0.00020273,2]
[370365358,1751981463605,-460.0,0.00020273,2]
[370365359,1751981463615,-460.0,0.00020273,2]
[370365360,1751981463624,-460.0,0.00020273,2]
[370365361,1751981463634,-460.0,0.00020273,2]
[370365362,1751981463643,-1341.38,0.00020273,2]
[370365363,1751981463652,-460.0,0.00020273,2]
[370365364,1751981463662,-505.9,0.00020273,2]
[370365365,1751981463671,-460.0,0.00020273,2]
[370365366,1751981463680,-460.0,0.00020273,2]
[370365367,1751981463690,-1267.68,0.00020273,2]
[370365368,1751981463699,-1821.03,0.00020273,2]
[370365369,1751981463709,-460.0,0.00020273,2]
[370365370,1751981463719,-460.0,0.00020273,2]
[370365371,1751981463728,-2845.28,0.00020273,2]
[370365372,1751981463737,-2121.78,0.00020273,2]
[370365373,1751981463747,-11303.12,0.00020273,2]
[370365374,1751981463756,-3011.57,0.00020273,2]
[370365375,1751981463766,-460.0,0.00020273,2]
[370365376,1751981463775,-460.0,0.00020273,2]
[370365377,1751981463787,-460.0,0.00020273,2]
[370365378,1751981463796,-460.0,0.00020273,2]
[370365379,1751981463805,-888.63,0.00020273,2]
[370365380,1751981463815,-460.0,0.00020273,2]
[370365381,1751981463824,-460.0,0.00020273,2]
[370365382,1751981463833,-460.0,0.00020273,2]
[370365383,1751981463842,-460.0,0.00020273,2]
[370365384,1751981463852,-460.0,0.00020273,2]
[370365385,1751981463861,-460.0,0.00020273,2]
[370365386,1751981463870,-749.06,0.00020273,2]
[370365387,1751981463880,-460.0,0.00020273,2]
[370365388,1751981463889,-1278.14,0.00020273,2]
[370365389,1751981463899,-1955.19,0.00020273,2]
[370365390,1751981463908,-526.77,0.00020273,2]
[370365391,1751981463918,-460.0,0.00020273,2]
[370365392,1751981463928,-460.0,0.00020273,2]
[370365393,1751981463937,-6484.75,0.00020273,2]
[370365394,1751981463947,-460.0,0.00020273,2]
[370365395,1751981463956,-500.0,0.00020273,2]
[370365396,1751981463966,-1174.49,0.00020273,2]
[370365397,1751981463976,-519.16,0.00020273,2]
[370365398,1751981463985,-460.0,0.00020273,2]
[370365399,1751981463995,-2194.12,0.00020273,2]
[370365400,1751981464004,-460.0,0.00020273,2]
[370365401,1751981464013,-460.0,0.00020273,2]
[370365402,1751981464023,-531.38,0.00020273,2]
[370365403,1751981464035,-6706.7,0.00020273,2]
[370365404,1751981464044,-466.57288743,0.00020273,2]
[370365405,1751981464053,-460.0,0.00020273,2]
[370365406,1751981464062,-460.0,0.00020273,2]
[370365407,1751981464072,-1170.12,0.00020273,2]
[370365408,1751981464082,-1201.64,0.00020273,2]
[370365409,1751981464091,-485.05,0.00020273,2]
[370365410,1751981464100,-460.0,0.00020273,2]
[370365411,1751981464110,-9417.42,0.00020273,2]
[370365412,1751981464119,-460.0,0.00020273,2]
[370365413,1751981464128,-3183.99,0.00020273,2]
[370365414,1751981464138,-460.0,0.00020273,2]
[370365415,1751981464147,-615.44,0.00020273,2]
[370365416,1751981464157,-532.41,0.00020273,2]
[370365417,1751981464166,-460.0,0.00020273,2]
[370365418,1751981464176,-1462.65,0.00020273,2]
[370365419,1751981464186,-460.0,0.00020273,2]
[370365420,1751981464195,-460.0,0.00020273,2]
[370365421,1751981464204,-1323.76,0.00020273,2]
[370365422,1751981464214,-460.0,0.00020273,2]
[370365423,1751981464224,-704.81,0.00020273,2]
[370365424,1751981464233,-5161.92,0.00020273,2]
[370365425,1751981464243,-460.0,0.00020273,2]
[370365426,1751981464253,-460.0,0.00020273,2]
[370365427,1751981464262,-479.18,0.00020273,2]
[370365428,1751981464271,-460.0,0.00020273,2]
[370365429,1751981464284,-520.04,0.00020273,2]
[370365430,1751981464295,-460.0,0.00020273,2]
[370365431,1751981464310,-460.0,0.00020273,2]
[370365432,1751981464319,-1434.35,0.00020273,2]
[370365433,1751981464329,-5953.51,0.00020273,2]
[370365434,1751981464339,-460.0,0.00020273,2]
[370365435,1751981464348,-460.0,0.00020273,2]
[370365436,1751981464358,-460.0,0.00020273,2]
[370365437,1751981464368,-841.4,0.00020273,2]
[370365438,1751981464377,-460.0,0.00020273,2]
[370365439,1751981464387,-2917.72,0.00020273,2]
[370365440,1751981464396,-460.0,0.00020273,2]
[370365441,1751981464407,-2157.33,0.00020273,2]
[370365442,1751981464416,-3295.55,0.00020273,2]
[370365443,1751981464425,-460.0,0.00020273,2]
[370365444,1751981464435,-1045.57,0.00020273,2]
[370365445,1751981464444,-460.0,0.00020273,2]
[370365446,1751981464454,-460.0,0.00020273,2]
[370365447,1751981464463,-1048.98,0.00020273,2]
[370365448,1751981464473,-730.08,0.00020273,2]
[370365449,1751981464483,-271.9,0.00020279,4]
[370365450,1751981464493,-151.0,0.000203,3]
[370365451,1751981464503,-4000.0,0.00020316,2]
[370365452,1751981464513,-160.0,0.0002032,3]
[370365453,1751981464522,-160.0,0.0002032,3]
[370365454,1751981464534,-525.03036055,0.0002032,3]
[370365455,1751981464543,-848.40570879,0.0002032,3]
[370365456,1751981464553,-8375.19664665,0.0002032,3]
[370365457,1751981464562,-1000.0,0.00020321,2]
[370365458,1751981464571,-212.24213182,0.00020321,2]
[370365459,1751981464580,-182.06287926,0.00020321,2]
[370365460,1751981464590,-1000.0,0.00020321,2]
[370365461,1751981464599,-1000.0,0.00020321,2]
[370365462,1751981464608,-1000.0,0.00020321,2]
[370365463,1751981464618,-1000.0,0.00020321,2]
[370365464,1751981464627,-1000.0,0.00020321,2]
[370365465,1751981464637,-162.1290201,0.00020329,2]
[370365466,1751981464646,-486.0,0.00020339,2]
[370365467,1751981464655,-5461.15789496,0.00020348,3]
[370365468,1751981464665,-1045.88465562,0.00020381,2]
[370365469,1751981464674,-4000.0,0.00020388,2]
[370365470,1751981464684,-168.0,0.00020398,2]
[370365471,1751981464693,-151.0,0.000204,3]
[370365472,1751981464703,-168.0,0.00020413,2]
[370365473,1751981464713,-168.0,0.00020425,2]
[370365474,1751981464722,-215.0738,0.00020428,2]
[370365475,1751981464731,-336.9,0.00020432,3]
[370365476,1751981464741,-214.10276668,0.0002044,3]
[370365477,1751981464752,-288.10452759,0.00020447,2]
[370365478,1751981464761,-5000.0,0.00020462,2]
[370365479,1751981464771,-479.0,0.00020482,2]
[370365480,1751981464782,-600.0,0.00020486,2]
[370365481,1751981464792,-271.9,0.00020494,4]
[370365482,1751981464801,-160.0,0.0002053,3]
[370365483,1751981464810,-200.0,0.0002054,2]
[370365484,1751981464819,-200.0,0.00020546,2]
[370365485,1751981464829,-460.0,0.00020547,2]
[370365486,1751981464839,-460.0,0.00020547,2]
[370365487,1751981464848,-460.0,0.00020547,2]
[370365488,1751981464858,-460.0,0.00020547,2]
[370365489,1751981464867,-460.0,0.00020547,2]
[370365490,1751981464876,-497.0345827,0.00020547,2]
[370365491,1751981464886,-460.0,0.00020547,2]
[370365492,1751981464895,-460.0,0.00020547,2]
[370365493,1751981464904,-460.0,0.00020547,2]
[370365494,1751981464914,-460.0,0.00020547,2]
[370365495,1751981464923,-529.8,0.00020547,2]
[370365496,1751981464933,-500.0,0.00020547,14]
[370365497,1751981464943,-460.0,0.00020547,2]
[370365498,1751981464952,-325.35693803,0.00020547,2]
[370365499,1751981464962,-460.0,0.00020547,2]
[370365500,1751981464972,-460.0,0.00020547,2]
[370365501,1751981464982,-460.0,0.00020547,2]
[370365502,1751981464991,-460.0,0.00020547,2]
[370365503,1751981465001,-460.0,0.00020547,2]
[370365504,1751981465010,-508.39,0.00020547,2]
[370365505,1751981465020,-460.0,0.00020547,2]
[370365506,1751981465031,-460.0,0.00020547,2]
[370365507,1751981465041,-460.0,0.00020547,2]
[370365508,1751981465050,-460.0,0.00020547,2]
[370365509,1751981465060,-460.0,0.00020547,2]
[370365510,1751981465069,-460.0,0.00020547,2]
[370365511,1751981465079,-465.54,0.00020547,2]
[370365512,1751981465088,-460.0,0.00020547,2]
[370365513,1751981465098,-569.19,0.00020547,2]
[370365514,1751981465107,-460.0,0.00020547,2]
[370365515,1751981465117,-548.66622422,0.00020547,2]
[370365516,1751981465126,-460.0,0.00020547,2]
[370365517,1751981465136,-460.0,0.00020547,2]
[370365518,1751981465145,-460.0,0.00020547,2]
[370365519,1751981465155,-460.0,0.00020547,2]
[370365520,1751981465165,-460.0,0.00020547,2]
[370365521,1751981465175,-460.0,0.00020547,2]
[370365522,1751981465185,-460.0,0.00020547,2]
[370365523,1751981465194,-713.88,0.00020547,2]
[370365524,1751981465204,-460.0,0.00020547,2]
[370365525,1751981465214,-460.0,0.00020547,2]
[370365526,1751981465224,-460.0,0.00020547,2]
[370365527,1751981465233,-460.0,0.00020547,2]
[370365528,1751981465243,-464.6,0.00020547,2]
[370365529,1751981465252,-758.18,0.00020547,2]
[370365530,1751981465262,-460.0,0.00020547,2]
[370365531,1751981465271,-460.0,0.00020547,2]
[370365532,1751981465282,-460.0,0.00020547,2]
[370365533,1751981465292,-460.0,0.00020547,2]
[370365534,1751981465306,-460.0,0.00020547,2]
[370365535,1751981465431,-460.0,0.00020547,2]
[370365536,1751981465455,-959.15,0.00020547,2]
[370365537,1751981465465,-460.0,0.00020547,2]
[370365538,1751981465475,-460.0,0.00020547,2]
[370365539,1751981465484,-460.0,0.00020547,2]
[370365540,1751981465494,-680.29,0.00020547,2]
[370365541,1751981465503,-460.0,0.00020547,2]
[370365542,1751981465512,-460.0,0.00020547,2]
[370365543,1751981465522,-748.67,0.00020547,2]
[370365544,1751981465532,-567.15,0.00020547,2]
[370365545,1751981465541,-460.0,0.00020547,2]
[370365546,1751981465551,-460.0,0.00020547,2]
[370365547,1751981465560,-460.0,0.00020547,2]
[370365548,1751981465569,-460.0,0.00020547,2]
[370365549,1751981465579,-460.0,0.00020547,2]
[370365550,1751981465589,-460.0,0.00020547,2]
[370365551,1751981465598,-498.51,0.00020547,2]
[370365552,1751981465608,-460.0,0.00020547,2]
[370365553,1751981465617,-552.98,0.00020547,2]
[370365554,1751981465626,-460.0,0.00020547,2]
[370365555,1751981465635,-460.0,0.00020547,2]
[370365556,1751981465644,-460.0,0.00020547,2]
[370365557,1751981465654,-460.0,0.00020547,2]
[370365558,1751981465663,-460.0,0.00020547,2]
[370365559,1751981465673,-609.74,0.00020547,2]
[370365560,1751981465682,-460.0,0.00020547,2]
[370365561,1751981465691,-1124.92,0.00020547,2]
[370365562,1751981465700,-460.0,0.00020547,2]
[370365563,1751981465709,-460.0,0.00020547,2]
[370365564,1751981465719,-460.0,0.00020547,2]
[370365565,1751981465728,-1744.91,0.00020547,2]
[370365566,1751981465738,-1208.23,0.00020547,2]
[370365567,1751981465747,-460.0,0.00020547,2]
[370365568,1751981465756,-482.14,0.00020547,2]
[370365569,1751981465765,-460.0,0.00020547,2]
[370365570,1751981465775,-460.0,0.00020547,2]
[370365571,1751981465786,-460.0,0.00020547,2]
[370365572,1751981465795,-460.0,0.00020547,2]
[370365573,1751981465804,-460.0,0.00020547,2]
[370365574,1751981465814,-1511.21,0.00020547,2]
[370365575,1751981465824,-460.0,0.00020547,2]
[370365576,1751981465833,-460.0,0.00020547,2]
[370365577,1751981465843,-794.32,0.00020547,2]
[370365578,1751981465852,-460.0,0.00020547,2]
[370365579,1751981465862,-460.0,0.00020547,2]
[370365580,1751981465871,-460.0,0.00020547,2]
[370365581,1751981465881,-460.0,0.00020547,2]
[370365582,1751981465890,-519.1,0.00020547,2]
[370365583,1751981465899,-460.0,0.00020547,2]
[370365584,1751981465909,-460.0,0.00020547,2]
[370365585,1751981465918,-460.0,0.00020547,2]
[370365586,1751981465929,-493.07,0.00020547,2]
[370365587,1751981465939,-460.0,0.00020547,2]
[370365588,1751981465951,-460.0,0.00020547,2]
[370365589,1751981465961,-460.0,0.00020547,2]
[370365590,1751981465970,-771.38,0.00020547,2]
[370365591,1751981465979,-460.0,0.00020547,2]
[370365592,1751981465988,-460.0,0.00020547,2]
[370365593,1751981465997,-460.0,0.00020547,2]
[370365594,1751981466007,-460.0,0.00020547,2]